Cogmind - Beta 14 @@@ ROGUE MODE // 2024.08.19 @ 04:15:30 Player: Daffa0360 Result: Destroyed by as-87080 with Assembled Heavy Rifle Performance ------------- Evolutions (1) 500 Regions Visited (4) 800 Robots Destroyed (45) 225 Value Destroyed (1121) 1121 Prototype IDs (4) 80 Alien Tech Used (0) 0 Bonus (-35) -35 TOTAL SCORE: 2691 Bonus ------- Friendly Fire -35 Cogmind --------- Core Integrity 0/400 Matter 246/300 Energy 97/100 System Corruption 1% Temperature Cool (7) Movement Core (50) Location -9/Mines Parts ------- > --- POWER (1) -------- (None) > --- PROPULSION (2) --- (None) > --- UTILITY (4) ------ Advanced Visual Processing Unit > --- WEAPON (2) ------- (None) > --- INVENTORY (5) ---- Ion Engine Hacking Suite Mining Laser Peak State ------------ > --- POWER ------------ Light Ion Engine > --- PROPULSION ------- Improved Aluminum Leg Improved Aluminum Leg > --- UTILITY ---------- Improved Terrain Scanner Seismic Detector Decoy Drone Bay > --- WEAPON ----------- Medium Laser Assault Rifle > --- INVENTORY -------- Medium Laser Grenade Launcher Mining Laser [Rating: 25] Favorites ----------- Power Ion Engine Engine Ion Engine Propulsion Wheel Leg Aluminum Leg Wheel Wheel Utility Seismic Detector Device Seismic Detector Storage Small Storage Unit Processor Advanced Visual Processing Unit Protection Medium Armor Plating Weapon Medium Laser Energy Gun Medium Laser Ballistic Gun Assault Rifle Launcher Rocket Launcher Build | -11 -10 -10 -9 -9 ------- Run | Yrd Mat Min Mat Min Slots Evolved 2 | . . . 2 . Power . | . . . . . Propulsion . | . . . . . Utility 2 | . . . 2 . Weapon . | . . . . . Parts Attached 41 | 6 7 3 21 4 Power 6 | 1 . 1 4 . Engine 6 | 1 . 1 4 . Core . | . . . . . Reactor . | . . . . . Propulsion 8 | 2 2 . 4 . Treads . | . . . . . Leg 4 | . . . 4 . Wheel 4 | 2 2 . . . Hover . | . . . . . Flight . | . . . . . Utility 8 | 1 . 2 5 . Device 5 | . . 2 3 . Storage 1 | 1 . . . . Processor 1 | . . . 1 . Hackware . | . . . . . Protection 1 | . . . 1 . Artifact . | . . . . . Weapon 19 | 2 5 . 8 4 Energy Gun 12 | 2 3 . 5 2 Energy Cannon . | . . . . . Ballistic Gun 2 | . 1 . 1 . Ballistic Cannon . | . . . . . Launcher 5 | . 1 . 2 2 Special Weapon . | . . . . . Impact Weapon . | . . . . . Slashing Weapon . | . . . . . Piercing Weapon . | . . . . . Special Melee Weapon . | . . . . . Unidentified Prototypes 1 | . . 1 . . Parts Lost 19 | . 3 . 8 8 Power 2 | . . . 1 1 Propulsion 6 | . 1 . 3 2 Utility 4 | . . . 2 2 Weapon 7 | . 2 . 2 3 Highest Loss Streak 8 | . 3 . 3 8 To Critical Strikes 1 | . . . . 1 Average Slot Usage (%) 77 | . 73 91 74 80 Engine 11 | . 14 14 10 11 Leg 10 | . . . 15 18 Wheel 10 | . 25 28 1 . Device 14 | . . 11 19 11 Storage 4 | . 14 8 . . Processor 3 | . . . 4 11 Energy Gun 16 | . 15 14 17 14 Ballistic Gun 4 | . 2 14 3 . Peak Build Rating 25 | 6 6 19 25 13 Average Rating 12 | 4 5 11 15 10 On Entrance 8 | . 6 6 19 12 Naked Turns . | . . . . . Heaviest Build 25 | 13 14 21 25 18 Greatest Support 26 | 20 20 20 26 20 Greatest Overweight (x) 8 | . . 1 8 . Average Overweight (x) . | . . . . . Largest Inventory Capacity 8 | 8 8 8 5 5 Average Capacity 5 | 7 8 6 5 5 Most Carried 8 | 4 8 8 5 4 Average Carried 4 | 2 5 5 4 3 Final Capacity 8 | 8 8 5 5 5 Final Carried 6 | 4 6 5 4 3 Class Distribution -------------------- 70% | Mutant 29% | Scavenger-Mutant Dominant Class ---------------- Mutant | -10/Materials Mutant | -10/Mines Mutant | -9/Materials Scavenger-Mutant | -9/Mines Resources | -11 -10 -10 -9 -9 ----------- Run | Yrd Mat Min Mat Min Matter Collected 825 | 260 30 . 535 . Remotely . | . . . . . Salvage Created 1526 | 50 283 . 1147 46 Parts 83 | 11 14 . 58 . Haulers Intercepted 1 | . . . 1 . Recyclers Shooed . | . . . . . Parts Field Recycled . | . . . . . Retrieved Matter . | . . . . . Parts Self-Destructed . | . . . . . Prevented . | . . . . . Kills | -11 -10 -10 -9 -9 ------- Run | Yrd Mat Min Mat Min Combat Hostiles Destroyed 42 | . 5 . 27 10 Guns 21 | . 2 . 19 . AOE 20 | . 3 . 7 10 Classes Destroyed 11 | 1 4 . 5 1 Worker 2 | . 1 . 1 . Builder 1 | . 1 . . . Tunneler 4 | 3 . . 1 . Hauler 1 | . . . 1 . Recycler 3 | . 1 . 2 . Operator 1 | . . . 1 . Watcher 1 | . . . 1 . Swarmer 8 | . . . 8 . Grunt 18 | . 5 . 13 . Sentry 6 | . . . 6 . Assembled 10 | . . . . 10 Best Kill Streak 10 | 3 7 . 7 10 Combat Bots Only 10 | . 4 . 4 10 Max Kills in Single Turn 6 | 1 5 . 3 6 Gunslinging . | . . . . . Exploded 6 | . 3 . 2 6 Melee . | . . . . . Uniques/NPCs Destroyed . | . . . . . Combat | -11 -10 -10 -9 -9 -------- Run | Yrd Mat Min Mat Min Hostile Shots Fired 212 | . 34 . 131 47 Missed 59 | . 8 . 37 14 Damage Taken 2265 | . 356 . 1240 669 Core 511 | . 93 . 256 162 Absorbed by Shields . | . . . . . Core Remaining (%) 81 | 100 . 62 . . Volleys Fired 122 | 9 15 . 89 9 Largest 2 | 2 2 . 2 2 Hottest 100 | 80 80 . 100 90 Shots Fired 217 | 18 25 . 159 15 Gun 197 | 18 22 . 146 11 Cannon . | . . . . . Launcher 20 | . 3 . 13 4 Special . | . . . . . Kinetic 44 | . . . 44 . Thermal 135 | 9 13 . 102 11 Explosive 20 | . 3 . 13 4 Electromagnetic 18 | 9 9 . . . Robot Hit Streak 18 | 8 8 . 15 18 Robot Miss Streak 3 | 2 2 . 3 3 Penetration Max . | . . . . . Secondary Targets 1 | . . . 1 . Max Gunslinging Chain 1 | . . . 1 . Shots Hit Robots 156 | 11 16 . 122 7 Core Hits 104 | 3 18 . 64 19 Critical Kills . | . . . . . Critical Parts Destroyed . | . . . . . Critical Strikes 11 | . . . 11 . Burn 11 | . . . 11 . Melee Attacks . | . . . . . Impact . | . . . . . Slashing . | . . . . . Piercing . | . . . . . Sneak Attacks . | . . . . . Combat Hostiles . | . . . . . Follow-up Attacks . | . . . . . Damage Inflicted 3791 | 151 521 . 2317 802 Guns 1823 | 151 182 . 1418 72 Cannons . | . . . . . Explosions 1968 | . 339 . 899 730 Melee . | . . . . . Ramming . | . . . . . Kinetic 468 | . . . 468 . Thermal 1216 | 73 121 . 950 72 Explosive 1968 | . 339 . 899 730 Electromagnetic 139 | 78 61 . . . Impact . | . . . . . Slashing . | . . . . . Piercing . | . . . . . Highest Corruption 1 | . . . . 1 Average Corruption 1 | . . . . 1 Corruption Purged . | . . . . . Corruption Blocked . | . . . . . Overload Shots . | . . . . . Overflow Damage 64 | . . . 33 31 Projectiles . | . . . . . Explosions 64 | . . . 33 31 Melee . | . . . . . Knockbacks . | . . . . . Impact . | . . . . . Kinetic . | . . . . . Secondary . | . . . . . Self-Inflicted Damage 180 | . . . 131 49 Shots 4 | . . . 3 1 Rammed . | . . . . . Targets Rammed . | . . . . . Kicked . | . . . . . Crushed . | . . . . . Highest Temperature 135 | 72 135 . 102 72 Average Temperature 37 | 29 52 . 36 29 Received Heat Transfer 741 | . 198 . 543 . Siege Activations . | . . . . . Robots Corrupted . | . . . . . Combat Hostiles . | . . . . . Parts Fried . | . . . . . Impact Corruptions . | . . . . . Robots Melted 1 | . . . 1 . Combat Hostiles 1 | . . . 1 . Parts Melted 13 | . . . 13 . Heat Transferred 4131 | 175 275 . 3495 186 Parts Sabotaged . | . . . . . Parts Stolen . | . . . . . Parts Stripped . | . . . . . Power Chain Reactions . | . . . . . Alert | -11 -10 -10 -9 -9 ------- Run | Yrd Mat Min Mat Min Peak Influence 378 | 15 205 1 378 119 Initial 103 | . 9 1 . 103 Average 147 | 5 66 1 226 102 Maximum Alert Level 1 | . 1 . 1 . Low Security (%) 60 | 100 96 100 33 100 Level 1 39 | . 3 . 66 . Level 2 . | . . . . . Level 3 . | . . . . . Level 4 . | . . . . . Level 5 . | . . . . . High Security . | . . . . . Max Security . | . . . . . Squads Dispatched 2 | . . . 2 . Investigation 1 | . . . 1 . Extermination . | . . . . . Reinforcement 1 | . . . 1 . Assault . | . . . . . Garrison . | . . . . . Intercept . | . . . . . Searches Triggered . | . . . . . Construction Impeded . | . . . . . Haulers Reinforced . | . . . . . Active Scanning Responses . | . . . . . Cargo Convoy Interrupts . | . . . . . Stealth | -11 -10 -10 -9 -9 --------- Run | Yrd Mat Min Mat Min Distress Signals 4 | . . . 4 . Communications Jammed . | . . . . . Distress Signals . | . . . . . Times Spotted 71 | . 10 . 41 20 Peak Tracking Total 20 | . 4 . 5 20 Tactical Retreats 5 | . . . 4 1 Traps | -11 -10 -10 -9 -9 ------- Run | Yrd Mat Min Mat Min Traps Triggered 3 | . 1 . 2 . Indirectly . | . . . . . Trap Hack Attempts . | . . . . . Triggered . | . . . . . Disarmed . | . . . . . Reprogrammed . | . . . . . Reused . | . . . . . Traps Extracted . | . . . . . Installed . | . . . . . Triggered . | . . . . . Machines | -11 -10 -10 -9 -9 ---------- Run | Yrd Mat Min Mat Min Machines Disabled 2 | . . . 2 . Max in Single Turn 1 | . . . 1 . Machines Repaired . | . . . . . Machines Dismantled . | . . . . . Machines Sabotaged . | . . . . . Overloaded Fab Kills . | . . . . . Hacking | -11 -10 -10 -9 -9 --------- Run | Yrd Mat Min Mat Min Machines Accessed 8 | . 3 1 4 . Terminals 6 | . 3 . 3 . Fabricators . | . . . . . Repair Stations . | . . . . . Recycling Units . | . . . . . Scanalyzers 1 | . . . 1 . Garrison Access . | . . . . . Total Hacks 17 | . 8 1 8 . Successful 13 | . 6 1 6 . Failed 4 | . 2 . 2 . Catastrophic 2 | . 1 . 1 . Database Lockouts . | . . . . . Manual 4 | . . . 4 . Terminals 13 | . 8 . 5 . Fabricators . | . . . . . Repair Stations . | . . . . . Recycling Units . | . . . . . Scanalyzers 3 | . . . 3 . Garrison Access . | . . . . . Terminal Hacks 11 | . 6 1 4 . Record 1 | . . . 1 . Prototype ID Bank 2 | . 2 . . . Open Door 1 | . . 1 . . Branch Access Points 1 | . . . 1 . Terminal Index 1 | . 1 . . . Alert Level 2 | . 1 . 1 . Unreport Threat 1 | . . . 1 . Dispatch Records 1 | . 1 . . . Security Status 1 | . 1 . . . Fabricator Hacks . | . . . . . Repair Station Hacks . | . . . . . Recycling Unit Hacks . | . . . . . Scanalyzer 2 | . . . 2 . Insert Component 1 | . . . 1 . Analyze 1 | . . . 1 . Garrison Access Hacks . | . . . . . Unauthorized Hacks . | . . . . . Terminals . | . . . . . Fabricators . | . . . . . Repair Stations . | . . . . . Recycling Units . | . . . . . Scanalyzers . | . . . . . Garrison Access . | . . . . . Data Cores Recovered . | . . . . . Used . | . . . . . Hacking Detections 6 | . 3 . 3 . Full Trace Events 1 | . 1 . . . Feedback Events . | . . . . . Feedback Blocked . | . . . . . Robot Schematics Acquired . | . . . . . Robots Built . | . . . . . Authchips . | . . . . . Time . | . . . . . Total Robot Build Rating . | . . . . . Part Schematics Acquired 1 | . . . 1 . Parts Built . | . . . . . Authchips . | . . . . . Time . | . . . . . Total Part Build Rating . | . . . . . Parts Repaired . | . . . . . Time . | . . . . . Parts Recycled . | . . . . . Recycled Matter . | . . . . . Retrieved Matter . | . . . . . Retrieved Components . | . . . . . Parts Scanalyzed 1 | . . . 1 . Part Schematics Acquired 1 | . . . 1 . Parts Damaged . | . . . . . Bothacking | -11 -10 -10 -9 -9 ------------ Run | Yrd Mat Min Mat Min Used RIF Installer . | . . . . . Robots Hacked . | . . . . . Non-combat . | . . . . . Combat . | . . . . . Robot Hacks Applied . | . . . . . Relay Couplers Released . | . . . . . Fabnet Peak Effective % . | . . . . . Robots Rewired . | . . . . . Allies Hacked . | . . . . . Hacks Repelled . | . . . . . Allies | -11 -10 -10 -9 -9 -------- Run | Yrd Mat Min Mat Min Total Allies . | . . . . . Largest Group . | . . . . . Highest-Rated Group . | . . . . . Highest-Rated Ally . | . . . . . Total Orders . | . . . . . Ally Attacks . | . . . . . Total Damage . | . . . . . Kills . | . . . . . Allies Corrupted . | . . . . . Allies Melted . | . . . . . Intel | -11 -10 -10 -9 -9 ------- Run | Yrd Mat Min Mat Min Robot Analysis Total . | . . . . . Derelict Logs Recovered 1 | . . 1 . . Drone Launches 1 | . . . 1 . Drone Recoveries . | . . . . . Exploration | -11 -10 -10 -9 -9 ------------- Run | Yrd Mat Min Mat Min Turns Passed 2108 | 121 407 307 1236 37 Spaces Moved 1179 | 78 306 251 537 7 Core 77 | 7 . . 70 . Treads . | . . . . . Legs 444 | . . . 437 7 Wheels 658 | 71 306 251 30 . Hover . | . . . . . Flight . | . . . . . Fastest Speed 50 | 50 80 80 95 120 Average Speed 114 | 77 80 87 152 120 Slowest Speed 450 | 80 80 95 450 120 Overloaded Moves . | . . . . . Propulsion Burnouts . | . . . . . Robots Hopped . | . . . . . Cave-ins Triggered . | . . . . . Exploration Rate (%) 32 | 5 59 54 38 7 Regions Visited 4 Branch Regions 2 Pre-discovered Areas 1 | . . . . 1 Known Exits Taken 1 | . . . 1 . Unknown Exits Taken 3 | 1 1 1 . . Scrap Searched . | . . . . . Spaces Dug . | . . . . . Terrain Destroyed 163 | . 20 . 110 33 Melee . | . . . . . Projectile . | . . . . . AOE 163 | . 20 . 110 33 Terrain Rammed . | . . . . . Walls Destroyed . | . . . . . Machines Disabled . | . . . . . Actions | -11 -10 -10 -9 -9 --------- Run | Yrd Mat Min Mat Min Total 1715 | 120 444 339 792 20 Wait 334 | 18 107 80 129 . Move 1175 | 77 305 250 536 7 Hop . | . . . . . Pick Up 32 | 10 8 3 11 . Fast Attach 5 | . 1 . 4 . Attach 25 | 6 6 2 10 1 Detach 3 | . 1 1 1 . Swap 11 | . . 1 7 3 Drop 8 | . 1 2 5 . Fire 122 | 9 15 . 89 9 Melee . | . . . . . Ram . | . . . . . Kick . | . . . . . Crush . | . . . . . Escape Stasis . | . . . . . Rewire . | . . . . . Trap . | . . . . . Miscellaneous . | . . . . . Route ------- -11/Scrapyard -10/Materials (discovered 2 exits: *Mat / *Min) -10/Mines -9/Materials -9/Mines History --------- Turn | Location | Event 22 | -11/Scrapyard | Discovered new exit (range 15) 122 | -11/Scrapyard | Entered Materials 313 | -10/Materials | Build established: Mutant 320 | -10/Materials | Discovered new exit (range 8) 443 | -10/Materials | Lost 3 parts (1n2w) 479 | -10/Materials | Discovered new exit (range 7) 529 | -10/Materials | Entered Mines 553 | -10/Mines | Learned Materials terminal intel 689 | -10/Mines | Found the Drone Emporium 706 | -10/Mines | Found Prototype Device 716 | -10/Mines | Identified Decoy Drone Bay 816 | -10/Mines | Discovered new exit (range 8) 836 | -10/Mines | Entered Materials 836 | -9/Materials | Evolved 2 slots: Utility x2 837 | -9/Materials | Loaded intel: 12 terminal locations 1354 | -9/Materials | Identified exit to Mines 1401 | -9/Materials | Core integrity fell below 50% 1435 | -9/Materials | Lost 3 parts (2n1u) 1942 | -9/Materials | Build established: Scavenger-Mutant 2072 | -9/Materials | Entered Mines 2073 | -9/Mines | Learned location of Storage (-7) 2073 | -9/Mines | Assembled infested the area 2078 | -9/Mines | Assisted by a Guerilla fighting off Assembled 2097 | -9/Mines | Core integrity fell below 20% 2109 | -9/Mines | Destroyed by as-87080 with Assembled Heavy Rifle Last Messages --------------- 02097_ as-68714 destroyed. 02097_ as-78035 destroyed. 02097_ Med. Armor Plating destroyed. 02097_ Destroyed Med. Armor Plating. 02097_ as-30210 destroyed. 02097_ Destroyed Asb. Hover Unit. 02097_ as-39863 destroyed. 02097_ as-47086 destroyed. [Achievement: Quick And Dirty] 02097_ as-78427 destroyed. 02098_ Aluminum Leg destroyed. 02100_ Rocket Launcher destroyed. 02104_ Med. Laser destroyed. 02104_ Seismic Detector destroyed. 02105_ Critical hit (Destroy). 02105_ Aluminum Leg destroyed. 02105_ Imp. Ion Engine destroyed. 02105_ System corrupted by crushing effect (+1). 02105_ Knocked back. 02108_ Sml. Laser destroyed. Map ----- +----------------------------------------------------+ | | | | | | | | | | | | | | | | | | | | | | | | | | | | | | | | | | | | | | | | | | | | | ?????????????????????????????? | | ?#######?????????????????????? | | ?# #?????????????????????? | | ?# %@ #?????????????????????? | | ?# %a #####?????????????????? | | ?# %a # ######????????????? | | ?# %a #????????????? | | ?# aa #???????????? | | ?# #???????????? | | ?# %] #???????????? | | ?## #??????????? | | ??## # #??????????? | | ???###### #??????????? | | ???????? % ##??????????? | | ????????##; #???????????? | | ??????????# % ??????????? | | ??????????? ?????????? | | ???????????? ## ????????? | | ???????????? ;##? " ???????? | | ?????????????###??? ???????? | | ???????????????????? ???????? | | ????????????????????? ???????? | | ?????????????????????????????? | | ?????????????????????????????? | | ?????????????????????????????? | | ?????????????????????????????? | | ?????????????????????????????? | | ?????????????????????????????? | +----------------------------------------------------+ Best States ------------- Heat Dissipation 28 Energy Generation 12 Energy Capacity 265 Matter Stores 300 Matter Capacity 300 Sight Range 20 Terrain Scan Range 16 Terrain Scan Density 10 Armor Coverage 225 Evasion (%) 55 Item Schematics ----------------- Med. Laser | -9/Materials | Scanalyzed Robot Schematics ------------------ None Fabricated ------------ Nothing Alien Tech Used ----------------- None Achievements -------------- Quick And Dirty Challenges ------------ None Game ------ Seed MiningNeutronShotgun Manual? 0 Play Time 00:16:13 Cumulative 48.6 hours Start 2024.08.19 @ 03:56:45 End 2024.08.19 @ 04:15:30 Sessions 1 Manual Loads 0 Difficulty Rogue Special Mode None Game No. 81 Rogue 77 Adventurer 4 Explorer 0 Win Type - Total 0 Types 0/0/0/0/0/0/0/0/0 Lore% 16 Gallery% 37 Achievement% 30 Wizard Run 0 Options --------- Layout 2 ASCII 0 Keyboard 0 Movement Mouse Keybinds 0 Fullscreen 2 Font 24/Smallcaps Map View 50x44 Zoom Use 0% Tactical HUD 1 Map Filters NONE Filters NONE Steam 1 RUN: 55b560e4-27e0-4f04-9d15-3aff35ef7f28